bitfinex/quotes_ETHUSD_20250511
["timestamp","ask_amount","ask_price","bid_price","bid_amount"]
[1746930328756,7.15134044,2555.4,2554.2,0.3068]
[1746930328917,7.86647448,2555.4,2554.3,0.03914395]
[1746930329252,5.30243297,2555.8,2554.4,0.3068]
[1746930329460,3.91321657,2555.5,2554.4,0.3068]
[1746930329917,3.91332701,2555.4,2554.4,0.3068]
[1746930330125,3.91318948,2555.5,2554.4,0.3068]
[1746930330324,3.91303751,2555.6,2554.4,1.15408]
[1746930330562,3.91314834,2555.5,2554.5,0.3068]
[1746930330868,3.91301566,2555.6,2554.5,0.3068]
[1746930331354,4.25017741,2555.4,2554.5,0.3068]
[1746930331553,3.91363648,2555.2,2554.5,0.3068]
[1746930331752,3.9136989,2555.2,2554.5,0.3068]
[1746930331941,3.91359693,2555.2,2554.5,0.3068]
[1746930332318,3.91335515,2555.4,2554.5,0.3068]
[1746930332653,3.91329576,2555.4,2554.5,0.3068]
[1746930332855,1.10473548,2555.4,2554.5,0.3068]
[1746930333161,3.91328346,2555.4,2554.5,8.3068]
[1746930333523,3.91353684,2555.3,2554.5,8.3068]
[1746930333735,3.91364061,2555.2,2554.5,8.3068]
[1746930334342,3.215,2555.6,2554.5,0.3068]
[1746930334544,3.91362012,2555.2,2554.5,0.3068]
[1746930335060,5.30243297,2555.8,2554.5,0.3068]
[1746930335264,3.216,2555.7,2554.5,0.3068]
[1746930335475,3.91336735,2555.4,2554.5,0.3068]
[1746930335754,3.91348152,2555.3,2554.5,0.3068]
[1746930335922,3.9133543,2555.4,2554.5,1.45928]
[1746930336354,3.913436,2555.3,2554.5,1.45928]
[1746930336578,3.91312821,2555.6,2554.5,1.15248]
[1746930336755,3.91315571,2555.5,2554.6,0.3068]
[1746930337426,3.91299742,2555.6,2554.6,0.3068]
[1746930337631,3.91288127,2555.7,2554.6,1.252728]
[1746930337834,3.91299422,2555.6,2554.6,1.252728]
[1746930338033,3.129,2555.9,2554.7,0.3459405]
[1746930338264,3.91276298,2555.8,2554.8,8.0]
[1746930338578,3.9128423,2555.7,2554.8,9.03851021]
[1746930338773,4.58222754,2555.8,2554.8,9.03851021]
[1746930339092,0.66948788,2555.8,2554.8,9.03851021]
[1746930339445,4.58216947,2555.8,2554.8,9.07764719]
[1746930339760,4.58216947,2555.8,2554.9,0.3068]
[1746930339973,0.66948788,2555.8,2555.0,3.218]
[1746930340192,3.91223673,2556.1,2555.1,8.0]
[1746930340341,3.91268651,2555.8,2555.2,0.3068]
[1746930340665,3.91267902,2555.8,2555.2,0.3068]
[1746930340869,0.29170171,2556.1,2555.2,0.3068]
[1746930341039,5.07614099,2556.1,2555.2,0.3068]
[1746930341440,0.218516,2556.0,2555.2,0.3068]
[1746930342648,0.218516,2555.9,2555.2,0.3068]
[1746930343578,4.25017741,2556.2,2555.2,0.3068]
[1746930343742,0.29862479,2556.2,2555.2,0.3068]
[1746930344073,5.07111765,2556.2,2555.2,0.3068]
[1746930344448,1.15905655,2556.2,2555.2,0.3068]
[1746930344876,5.07113973,2556.2,2555.2,0.3068]
[1746930345072,4.20216683,2556.0,2555.2,0.3068]
[1746930345275,8.11503166,2555.7,2555.2,0.3068]
[1746930345477,0.81150317,2555.6,2555.2,0.3068]
[1746930346084,3.91232523,2556.1,2555.2,0.3068]
[1746930346284,4.20216683,2556.0,2555.2,0.3068]
[1746930346667,8.11461052,2556.0,2555.2,0.3068]
[1746930346866,0.21853681,2555.9,2555.2,0.3068]
[1746930347953,5.35949064,2556.2,2555.2,0.3068]
[1746930348174,1.34736005,2556.1,2555.2,0.3068]
[1746930348687,3.91245408,2556.0,2555.2,0.3068]
[1746930348987,5.35953484,2556.2,2555.2,0.3068]
[1746930349188,3.91227657,2556.1,2555.2,0.3068]
[1746930349680,8.33309418,2556.0,2555.2,3.5238]
[1746930349895,3.91262817,2555.9,2555.2,3.5238]
[1746930350059,0.80435555,2555.8,2555.2,0.3068]
[1746930350460,3.91301091,2555.6,2555.2,0.3068]
[1746930350661,4.20216683,2555.6,2555.2,0.3068]
[1746930350865,3.913237,2555.5,2554.8,0.3068]
[1746930351084,1.20283837,2555.4,2554.8,0.3068]
[1746930351293,1.42128307,2555.4,2554.8,0.3068]
[1746930351493,5.33460933,2555.4,2554.8,0.3068]
[1746930351802,1.20283837,2555.4,2554.8,0.3068]
[1746930352096,1.61265555,2555.8,2554.8,0.3068]
[1746930352097,0.80435555,2555.8,2554.8,0.34594317]
[1746930352294,4.20216683,2555.5,2554.8,0.3068]
[1746930352493,8.11534796,2555.5,2554.8,0.3068]
[1746930352864,3.91329351,2555.4,2554.8,0.3068]
[1746930353085,4.20216683,2555.5,2554.8,0.3068]
[1746930353086,0.21866973,2555.3,2554.8,0.3068]
[1746930353985,3.91314358,2555.5,2554.8,0.3068]
[1746930354185,5.40337728,2555.5,2554.8,8.3068]
[1746930354711,0.21897304,2555.4,2554.8,8.3068]
[1746930355462,0.21897304,2555.4,2554.9,0.3068]
[1746930355902,3.131,2555.9,2554.9,0.3068]
[1746930356185,5.3595402,2556.2,2554.8,8.0391388]
[1746930356186,5.35950683,2556.2,2555.1,0.3068]
[1746930356476,4.20045028,2556.2,2555.1,0.3068]
[1746930356687,0.28832839,2556.2,2555.1,0.3068]
[1746930356867,3.91216956,2556.2,2555.1,0.3068]
[1746930357069,0.21927908,2556.1,2555.1,0.3068]
[1746930357675,4.13159388,2556.1,2555.1,0.3068]
[1746930357875,1.75697211,2556.1,2555.1,0.3068]
[1746930358099,1.60697211,2556.1,2555.1,0.3068]
[1746930358304,1.53769303,2556.1,2555.1,0.3068]
[1746930358709,5.44992212,2556.1,2555.1,0.3068]
[1746930358892,1.53769303,2556.1,2555.1,0.3068]
[1746930359070,5.44991191,2556.1,2555.1,0.3068]
[1746930359571,3.218,2556.5,2555.2,0.03913203]
[1746930359872,7.63102602,2556.8,2555.4,8.0]
[1746930360080,11.01771952,2556.8,2555.7,0.3068]
[1746930360280,2.60975919,2556.8,2555.8,0.34592504]
[1746930360512,2.60975919,2556.8,2555.8,0.3068]
[1746930360819,2.60975919,2556.8,2556.0,0.3068]
[1746930360967,3.91169146,2556.5,2556.0,0.3068]
[1746930361367,4.20216683,2556.7,2556.0,0.3068]
[1746930361607,3.91185069,2556.4,2556.0,0.3068]
[1746930361804,3.9116517,2556.5,2556.0,0.3068]
[1746930362019,3.91167937,2556.5,2556.0,0.3068]
[1746930362315,3.9117523,2556.4,2556.0,0.3068]
[1746930362462,4.59271894,2556.6,2556.0,0.3068]
[1746930362669,3.91188093,2556.4,2555.7,8.3068]
[1746930363382,3.91236053,2556.1,2555.7,0.3068]
[1746930363741,3.91221831,2556.1,2555.7,0.3068]
[1746930364077,4.20216683,2556.4,2555.7,0.3068]
[1746930364270,8.11402132,2556.4,2555.7,0.3068]
[1746930364470,3.91245401,2556.0,2555.7,0.3068]
[1746930364671,4.7233613,2556.3,2555.7,0.3068]
[1746930364897,0.81140213,2556.3,2555.7,0.3068]
[1746930365209,3.91123742,2556.8,2555.7,0.3068]
[1746930365368,3.91138477,2556.7,2555.7,0.3068]
[1746930365568,3.91154971,2556.6,2555.7,0.3068]
[1746930365790,3.9113612,2556.7,2555.7,0.3068]
[1746930365997,4.30249732,2556.7,2555.7,0.3068]
[1746930366493,3.91147124,2556.6,2555.7,0.3068]
[1746930366802,0.8191,2556.6,2555.7,0.3068]
[1746930366988,3.91266922,2555.8,2555.7,0.3068]
[1746930367192,3.91266922,2555.8,2555.0,0.3068]
[1746930367369,3.91266922,2555.8,2555.0,0.65048]
[1746930367780,3.9128889,2555.7,2555.0,0.65048]
[1746930367982,3.91236306,2556.0,2555.0,8.65048]
[1746930368171,3.91259358,2555.9,2555.0,8.65048]
[1746930368388,3.91236306,2556.0,2555.0,8.65048]
[1746930368593,1.12445299,2555.9,2555.0,8.65048]
[1746930368992,1.12445299,2555.9,2555.0,3.78048]
[1746930368993,3.91275161,2555.8,2555.0,3.78048]
[1746930369392,3.91283735,2555.7,2555.0,3.78048]
[1746930369593,5.03702536,2555.9,2555.0,3.78048]
[1746930370022,5.03704845,2555.9,2555.0,3.78048]
[1746930370216,3.91271278,2555.8,2555.0,3.78048]
[1746930370584,3.91335653,2555.4,2555.0,0.3068]
[1746930370926,1.18365994,2555.8,2555.0,0.3068]
[1746930371331,3.91303313,2555.6,2555.0,0.3068]
[1746930371635,3.91297542,2555.6,2555.0,0.3068]
[1746930371816,0.21922137,2555.7,2555.0,0.3068]
[1746930371817,4.32642715,2555.5,2555.0,0.3068]
[1746930372015,3.9133078,2555.4,2555.0,0.3068]
[1746930372221,3.91362964,2555.2,2555.0,0.3068]
[1746930373034,0.41321968,2555.5,2555.0,0.3068]
[1746930373236,0.21917832,2555.4,2555.0,0.3068]
[1746930373410,3.91346863,2555.3,2555.0,0.3068]
[1746930373812,4.13253064,2555.4,2555.0,0.3068]
[1746930374011,3.9135531,2555.3,2555.0,0.3068]
[1746930374310,8.11590797,2555.1,2553.9,3.13]
[1746930374512,3.91461101,2554.6,2553.8,3.4368]
[1746930375006,3.91461101,2554.6,2553.8,8.3068]
[1746930375199,3.91423044,2554.8,2553.8,3.47595263]
[1746930375535,4.20216683,2555.1,2553.8,3.4368]
[1746930375705,3.91463106,2554.6,2553.9,8.0]
[1746930376119,3.91469168,2554.5,2553.9,8.0]
[1746930376356,3.91529454,2554.1,2553.8,0.3068]
[1746930376555,3.129,2554.7,2553.2,3.13]
[1746930376556,3.91481365,2554.4,2553.2,3.13]
[1746930376765,5.00916683,2554.5,2553.3,0.3068]
[1746930376979,12.32699253,2555.2,2553.6,0.3068]
[1746930376980,3.91397786,2555.0,2553.6,0.3068]
[1746930377183,3.91448399,2554.7,2553.8,0.3068]
[1746930377478,0.21895075,2554.9,2554.1,0.3068]
[1746930377837,4.13307629,2554.9,2554.1,0.3068]
[1746930378033,4.93775932,2554.9,2554.1,0.3068]
[1746930378238,1.02363378,2554.9,2554.1,0.3068]
[1746930378462,3.91427598,2554.8,2554.1,0.3068]
[1746930378771,3.91427866,2554.8,2554.1,0.3068]
[1746930379270,3.9145634,2554.6,2554.1,0.3068]
[1746930379574,3.9146604,2554.5,2553.8,0.3068]
[1746930379740,0.8173,2554.6,2553.8,0.3068]
[1746930379939,1.31924668,2554.6,2553.8,0.3068]
[1746930380437,3.91500794,2554.3,2553.8,0.3068]
[1746930380636,3.91543138,2554.0,2553.5,0.3068]
[1746930381275,3.91532562,2554.1,2553.5,0.3068]
[1746930381595,3.91542742,2554.0,2553.6,0.012247]
[1746930381870,3.9153865,2554.1,2553.6,0.012247]
[1746930382071,3.91510433,2554.3,2553.6,0.012247]
[1746930382277,4.20216683,2554.4,2553.6,0.012247]
[1746930382452,3.91522188,2554.2,2553.6,0.012247]
[1746930382648,7.33016683,2554.4,2553.6,0.012247]
[1746930382854,3.128,2555.0,2553.7,0.3068]
[1746930383172,4.20216683,2554.3,2553.7,0.3068]
[1746930383479,3.91517494,2554.2,2553.8,0.012247]
[1746930383936,4.30688703,2554.1,2553.8,0.012247]
[1746930384136,0.39151749,2554.1,2553.8,0.012247]
[1746930384366,3.91550098,2554.0,2553.8,0.012247]
[1746930384569,3.91558009,2553.9,2553.8,0.012247]
[1746930384976,3.91549718,2554.0,2553.8,0.012247]
[1746930385284,3.91558009,2553.9,2553.8,0.012247]
[1746930385443,4.75712516,2553.9,2553.8,0.012247]
[1746930388296,0.84154507,2553.9,2553.8,0.012247]
[1746930388591,3.91558009,2553.9,2553.8,0.012247]
[1746930388784,3.91513341,2554.2,2553.8,0.012247]
[1746930388942,3.128,2554.3,2553.8,0.012247]
[1746930389143,7.04306358,2554.3,2553.8,0.012247]
[1746930389343,1.1747623,2554.3,2553.8,0.012247]
[1746930389543,11.54213871,2554.6,2553.9,0.3068]
[1746930389777,8.41013871,2554.6,2553.9,0.3068]
[1746930389939,11.53813871,2554.6,2554.0,0.012247]
[1746930390139,7.33016683,2554.6,2554.0,0.012247]
[1746930390343,3.128,2554.6,2554.0,0.012247]
[1746930390558,7.04254506,2554.6,2554.0,0.012247]
[1746930391382,5.08976391,2554.6,2554.0,0.012247]
[1746930391582,5.08976391,2554.6,2553.9,0.3068]
[1746930391997,1.17521885,2554.6,2553.9,0.3068]
[1746930392201,3.91427194,2554.8,2553.9,0.3068]
[1746930392402,7.33016683,2554.9,2553.9,0.3068]
[1746930392589,8.11623297,2554.9,2553.9,0.3068]
[1746930392913,3.91441362,2554.7,2553.9,0.3068]
[1746930393120,3.132,2555.1,2553.9,0.3068]
[1746930393121,3.91374504,2555.1,2553.9,0.3068]
[1746930393324,6.52298402,2555.5,2554.1,0.3068]
[1746930393624,6.52298402,2555.5,2554.3,0.3068]
[1746930393917,6.52298402,2555.5,2554.6,0.3068]
[1746930394071,2.60975919,2555.5,2554.6,0.3068]
[1746930394273,6.5229009,2555.5,2554.8,0.3068]
[1746930394521,3.57474928,2555.5,2554.8,0.3068]
[1746930394717,2.60975919,2555.5,2554.8,0.3068]
[1746930395023,3.91281901,2555.8,2554.8,0.3068]
[1746930395309,3.127,2555.9,2555.0,0.3068]
[1746930395482,2.90739383,2556.1,2555.1,0.03913476]
[1746930395684,2.90739383,2556.1,2554.5,12.20216683]
[1746930395685,9.64905451,2556.1,2554.8,0.3068]
[1746930396018,6.52205451,2556.1,2554.8,3.4338]
[1746930396191,2.60975919,2556.1,2555.0,0.3068]
[1746930396503,2.60975919,2556.1,2555.3,0.3068]
[1746930396809,2.60975919,2556.1,2555.3,0.34592924]
[1746930397789,6.5219811,2556.1,2555.3,0.3068]
[1746930397986,3.91248113,2556.0,2555.3,0.3068]
[1746930398295,0.39119064,2556.2,2555.3,0.3068]
[1746930398490,3.91248068,2556.0,2555.3,0.3068]
[1746930398691,0.3007454,2556.5,2555.3,0.3068]
[1746930398910,3.9119095,2556.3,2555.3,1.45598]
[1746930399110,3.57529122,2556.5,2555.4,0.3068]
[1746930399319,3.91267021,2555.8,2555.4,0.3068]
[1746930399525,0.8172,2556.2,2555.4,0.3068]
[1746930399830,0.57223749,2556.7,2555.5,0.03913364]
[1746930400031,3.91130016,2556.7,2555.6,0.3068]
[1746930400333,3.91153637,2556.6,2555.8,0.3068]
[1746930400692,3.91144488,2556.6,2555.8,0.3068]
[1746930401032,3.91154026,2556.6,2555.8,0.3068]
[1746930401445,3.91167603,2556.5,2555.8,0.3068]
[1746930401651,4.20216683,2556.5,2555.8,0.3068]
[1746930401819,3.91198043,2556.3,2555.8,0.3068]
[1746930402019,3.91207863,2556.2,2555.8,0.3068]
[1746930402238,0.42021668,2556.4,2555.8,0.3068]
[1746930402446,3.91205586,2556.3,2555.8,0.3068]
[1746930402662,3.91213459,2556.2,2555.8,0.3068]
[1746930403116,5.01936683,2556.3,2555.5,0.3068]
[1746930403350,3.91234897,2556.1,2555.5,0.3068]
[1746930403538,3.91243741,2556.0,2555.5,0.3068]
[1746930403741,3.91252262,2555.9,2555.5,0.3068]
[1746930404258,3.9126048,2555.9,2555.5,0.3068]
[1746930404661,3.123,2556.2,2555.5,0.3068]
[1746930404831,7.03512575,2556.2,2555.5,0.3068]
[1746930405671,7.32816683,2556.5,2555.5,0.3068]
[1746930405837,3.122,2556.3,2555.5,0.3068]
[1746930406821,0.90093253,2556.5,2555.5,0.3068]
[1746930407022,0.90093253,2556.5,2555.6,0.34592513]
[1746930407439,3.91176855,2556.4,2555.6,0.3068]
[1746930408050,4.81257673,2556.5,2555.6,0.3068]
[1746930408358,4.39303987,2556.4,2555.6,0.3068]
[1746930408539,0.48125767,2556.4,2555.6,0.3068]
[1746930408739,3.91215214,2556.2,2555.6,0.3068]
[1746930409034,3.91198323,2556.3,2555.6,0.3068]
[1746930409348,3.91208852,2556.2,2555.6,0.3068]
[1746930409668,4.98556683,2556.2,2555.6,0.3068]
[1746930409859,3.91317969,2555.5,2555.3,0.3068]
[1746930410465,3.91305569,2555.6,2555.3,0.3068]
[1746930410634,3.91276577,2555.8,2555.3,0.3068]
[1746930410839,1.51484987,2555.8,2555.3,0.3068]
[1746930411162,3.91346495,2555.3,2554.7,3.125]
[1746930411364,3.91312854,2555.5,2554.7,3.125]
[1746930411865,3.91315406,2555.5,2554.6,0.3068]
[1746930412159,3.91346096,2555.3,2554.6,0.3068]
[1746930412351,3.91331547,2555.4,2554.6,8.3068]
[1746930412539,5.11617911,2555.4,2554.6,8.3068]
[1746930412740,3.91344447,2555.3,2554.6,8.3068]
[1746930412959,1.20286364,2555.4,2554.6,8.3068]
[1746930413175,3.91366603,2555.2,2554.6,0.3068]
[1746930413523,3.91349575,2555.3,2554.6,0.3068]
[1746930413758,0.8191,2555.7,2554.6,0.3068]
[1746930413991,5.02126683,2555.7,2554.6,0.3068]
[1746930414153,3.91353071,2555.3,2554.6,0.3068]
[1746930414544,5.02126683,2555.7,2554.6,0.3068]
[1746930414857,3.91323609,2555.5,2554.6,0.3068]
[1746930415260,3.91321454,2555.5,2554.6,0.3068]
[1746930415426,0.50212668,2555.6,2554.6,0.3068]
[1746930415427,3.91330363,2555.4,2554.6,0.3068]
[1746930415860,3.9133781,2555.4,2554.6,0.3068]
[1746930416365,3.62112668,2555.6,2554.6,0.3068]
[1746930416669,4.77738261,2555.5,2554.6,0.3068]
[1746930417026,4.77744273,2555.5,2554.6,0.3068]
[1746930417264,0.86423935,2555.5,2554.6,0.3068]
[1746930417460,4.77736943,2555.5,2554.6,8.3068]
[1746930417664,3.91335281,2555.4,2554.6,8.3068]
[1746930417870,4.77741633,2555.5,2554.6,9.45008]
[1746930418076,0.86423935,2555.5,2554.6,9.45008]
[1746930418478,3.91345911,2555.3,2554.6,9.45008]
[1746930419275,0.50212668,2555.6,2554.6,9.45008]
[1746930419579,3.91355073,2555.3,2554.6,9.45008]
[1746930419741,3.91342554,2555.4,2554.6,9.45008]
[1746930420683,3.118,2555.6,2554.6,9.45008]
[1746930420889,3.9141433,2554.9,2554.6,0.3068]
[1746930421041,3.91421212,2554.8,2554.3,0.3068]
[1746930421375,3.91378743,2555.1,2554.3,8.3068]
[1746930421588,3.9140759,2554.9,2554.3,8.3068]
[1746930422279,4.72554492,2555.0,2554.3,8.3068]
[1746930422438,0.81159543,2555.0,2554.3,8.3068]
[1746930422641,3.91380871,2555.1,2554.3,8.3068]
[1746930422878,3.91347739,2555.3,2554.3,8.3068]
[1746930423082,3.91332445,2555.4,2554.4,0.3068]
[1746930423246,3.91320105,2555.5,2554.4,0.3068]
[1746930423447,1.89440506,2555.5,2554.5,0.34594332]
[1746930423789,0.29087692,2556.0,2554.9,0.3068]
[1746930424084,0.29087692,2556.0,2554.8,8.0]
[1746930424085,0.29087692,2556.0,2555.2,0.3068]
[1746930424271,7.02875614,2556.4,2555.2,0.34593055]
[1746930424448,3.91255859,2555.9,2555.3,0.3068]
[1746930424642,3.91219941,2556.2,2555.3,0.3068]
[1746930424845,1.78586147,2556.3,2555.3,0.3068]
[1746930425282,3.91205695,2556.2,2555.3,0.3068]
[1746930425463,1.78586147,2556.3,2555.3,0.3068]
[1746930425665,0.21872935,2556.2,2555.5,0.3068]
[1746930426068,4.13086412,2556.2,2555.5,0.3068]
[1746930426263,3.91223093,2556.1,2555.5,0.3068]
[1746930426578,3.91240548,2556.0,2555.5,0.3068]
[1746930426786,3.91225954,2556.1,2555.5,0.3068]
[1746930427284,3.91206679,2556.2,2555.5,0.3068]
[1746930427581,0.78239903,2556.2,2555.5,0.3068]
[1746930427784,11.33609936,2556.5,2555.5,0.3068]
[1746930427785,3.91180554,2556.4,2555.5,0.3068]
[1746930428290,7.13393253,2556.5,2555.5,0.3068]
[1746930428489,3.91175089,2556.4,2555.5,0.3068]
[1746930428660,3.91191312,2556.3,2555.5,0.3068]
[1746930428859,4.13049842,2556.4,2555.5,0.3068]
[1746930429065,1.73610086,2556.4,2555.5,0.3068]
[1746930429361,4.13061807,2556.3,2555.5,0.3068]
[1746930429576,0.21871186,2556.3,2555.5,0.3068]
[1746930430483,3.91240444,2556.0,2555.5,0.3068]
[1746930430786,3.91214552,2556.2,2555.5,0.3068]
[1746930430948,4.84627976,2556.2,2555.5,0.3068]
[1746930431149,3.91263334,2555.9,2555.5,0.3068]
[1746930431556,3.91263334,2555.9,2554.7,10.05216683]
[1746930431557,3.91236306,2556.0,2555.2,0.3068]
[1746930431786,3.913085,2555.6,2555.2,0.3068]
[1746930431960,3.91317779,2555.5,2555.2,0.3068]
[1746930432159,0.21882449,2555.9,2554.9,0.3068]
[1746930432354,7.2444217,2555.9,2554.9,1.44908]
[1746930432555,3.113,2555.9,2554.9,1.44908]
[1746930432799,3.91268894,2555.8,2554.9,1.44908]
[1746930433174,3.113,2555.9,2555.1,0.3068]
[1746930433497,3.91295545,2555.7,2555.1,0.3068]
[1746930433808,3.91274507,2555.8,2555.1,0.3068]
[1746930434783,3.91285692,2555.7,2555.1,0.3068]
[1746930435109,3.9128285,2555.7,2555.1,0.3068]
[1746930435604,3.9130483,2555.6,2555.1,0.3068]
[1746930435901,1.0938385,2555.7,2555.1,0.3068]
[1746930436098,3.91337119,2555.4,2555.1,0.3068]
[1746930436308,4.69886922,2555.8,2555.1,0.3068]
[1746930436470,3.91346594,2555.3,2555.1,0.3068]
[1746930436670,0.7862,2555.8,2555.1,0.3068]
[1746930436972,3.91098595,2556.9,2555.5,0.3068]
[1746930437174,3.91167353,2556.5,2555.7,0.3068]
[1746930437389,3.91179291,2556.4,2555.7,0.3068]
[1746930438081,3.91168563,2556.5,2555.7,0.3068]
[1746930438375,3.91222479,2556.1,2555.7,0.3068]
[1746930438899,3.91243673,2556.0,2555.7,0.3068]
[1746930439203,3.91268036,2555.8,2555.2,0.3068]
[1746930439870,3.91242778,2556.0,2555.2,0.3068]
[1746930441195,4.69467272,2556.1,2555.2,0.3068]
[1746930441813,3.91239991,2556.0,2555.2,0.3068]
[1746930442100,4.69468745,2556.1,2555.2,1.44908]
[1746930442303,0.21891106,2556.0,2555.3,0.34593309]
[1746930442520,0.21891106,2556.0,2555.5,8.0]
[1746930442806,0.21891106,2556.0,2555.7,0.3068]
[1746930443101,0.21891106,2556.0,2555.9,8.3068]
[1746930443269,0.21891106,2556.0,2555.9,9.452992]
[1746930443473,2.60975919,2556.9,2556.0,0.3068]
[1746930443707,2.60975919,2556.9,2556.5,0.3068]
[1746930443894,2.60975919,2556.9,2556.7,0.3068]
[1746930444803,3.91045234,2557.3,2556.7,0.3068]
[1746930444999,0.39104523,2557.2,2556.7,0.3068]
[1746930445201,3.91026741,2557.4,2556.7,0.3068]
[1746930445400,2.60975919,2557.5,2556.7,0.3068]
[1746930445701,3.91042327,2557.3,2556.7,0.3068]
[1746930446267,3.91042327,2557.3,2556.3,8.0]
[1746930446268,0.55,2557.1,2556.3,8.0]
[1746930446465,0.55,2557.1,2556.0,0.3068]
[1746930446466,3.91129197,2556.7,2556.0,0.3068]
[1746930446700,0.3911292,2556.6,2556.0,0.3068]
[1746930446895,3.91156363,2556.6,2556.0,0.3068]
[1746930447607,3.107,2556.8,2556.0,0.3068]
[1746930448067,3.91153719,2556.6,2556.0,0.3068]
[1746930448912,3.107,2556.8,2556.0,0.3068]
[1746930449098,0.3107,2556.7,2556.0,0.3068]
[1746930449407,4.22200238,2556.7,2556.0,0.3068]
[1746930449578,3.91147488,2556.6,2556.0,0.3068]
[1746930449778,0.3107,2556.7,2556.0,0.3068]
[1746930451209,3.91175155,2556.4,2555.5,3.4228]
[1746930451410,3.91209703,2556.2,2555.5,3.4228]
[1746930451610,0.39117516,2556.3,2555.5,3.4228]
[1746930451611,3.91223435,2556.1,2555.5,0.3068]
[1746930451817,3.91212476,2556.2,2555.5,0.3068]
[1746930451983,3.91225204,2556.1,2555.5,0.3068]
[1746930452379,4.30313636,2556.3,2555.5,0.3068]
[1746930452380,4.30316275,2556.3,2555.5,0.3068]
[1746930452617,0.82149321,2556.2,2555.5,0.3068]
[1746930452920,4.73358532,2556.2,2555.5,0.3068]
[1746930453112,3.91237287,2556.0,2555.5,0.3068]
[1746930453313,0.82149321,2556.2,2555.5,0.3068]
[1746930453702,3.91237973,2556.0,2555.5,0.3068]
[1746930454319,3.91228418,2556.1,2555.5,0.3068]
[1746930454517,0.82149321,2556.2,2555.5,0.3068]
[1746930454719,0.39117516,2556.3,2555.5,0.3068]
[1746930455429,3.9121844,2556.2,2555.5,0.3068]
[1746930455801,4.30312018,2556.3,2555.5,0.3068]
[1746930456409,3.91211001,2556.2,2555.5,0.3068]
[1746930456632,4.30314445,2556.3,2555.5,0.3068]
[1746930456932,0.39117516,2556.3,2555.5,0.3068]
[1746930457123,0.39117516,2556.3,2555.5,1.45299292]
[1746930457322,3.103,2556.5,2555.5,1.45299292]
[1746930457514,7.01467887,2556.5,2555.5,1.45299292]
[1746930457712,7.01367887,2556.5,2555.5,1.45299292]
[1746930458334,3.91178642,2556.4,2555.5,1.45299292]
[1746930458630,3.91177455,2556.4,2555.5,1.45299292]
[1746930458929,4.30318223,2556.3,2555.5,1.45299292]
[1746930459129,3.9257,2556.6,2555.5,1.45299292]
[1746930459334,3.91181666,2556.4,2555.5,1.4921189]
[1746930459544,3.9257,2556.6,2555.6,0.039126]
[1746930459837,3.91190965,2556.3,2555.6,0.3068]
[1746930460035,3.91159788,2556.5,2555.6,0.3068]
[1746930460342,1.12346946,2556.5,2555.6,1.25209929]
[1746930460520,1.12346946,2556.5,2555.6,0.94529929]
[1746930460705,7.32203773,2556.7,2555.8,0.3068]
[1746930460908,3.4107,2556.7,2555.8,0.3068]
[1746930461128,3.91216274,2556.2,2555.8,0.3068]
[1746930461325,3.91197091,2556.3,2555.8,0.3068]
[1746930461538,3.91222219,2556.1,2555.4,8.0]
[1746930461740,3.91260889,2555.9,2555.5,0.3068]
[1746930462050,3.91245272,2556.0,2555.5,0.3068]
[1746930462558,3.91256097,2555.9,2555.5,0.3068]
[1746930463051,3.91254313,2555.9,2555.5,0.3068]
[1746930463209,3.91186601,2556.4,2555.5,0.3068]
[1746930463415,3.91164586,2556.5,2555.5,0.3068]
[1746930463744,0.3107,2556.7,2555.7,0.3068]
[1746930463929,6.202,2556.8,2555.6,8.03912712]
[1746930463930,10.11316743,2556.8,2555.9,0.3068]
[1746930464131,3.099,2556.8,2555.9,8.3068]
[1746930464349,3.91074915,2557.1,2556.1,0.3068]
[1746930464525,3.91060688,2557.2,2556.3,0.3068]
[1746930464727,3.91068747,2557.1,2556.3,0.3068]
[1746930465046,0.21882259,2557.0,2556.3,0.3068]
[1746930465749,3.91024291,2557.4,2556.5,0.3068]
[1746930466114,7.82530955,2557.5,2556.5,3.4098]
[1746930466309,3.91030378,2557.4,2556.5,3.4098]
[1746930466528,4.20216683,2557.3,2556.5,3.4098]
[1746930466838,3.9112392,2556.8,2556.5,0.3068]
[1746930467043,3.91113187,2556.9,2556.5,0.3068]
[1746930467366,0.42021668,2557.2,2556.5,0.3068]
[1746930467662,3.91105344,2556.9,2556.5,0.3068]
[1746930467860,3.91090177,2557.0,2556.5,0.3068]
[1746930468065,4.6931564,2556.9,2556.5,0.3068]
[1746930468264,0.78216385,2556.9,2556.5,0.3068]
[1746930468567,0.42021668,2557.2,2556.5,0.3068]
[1746930468768,3.91072247,2557.1,2556.5,0.3068]
[1746930469067,3.91108251,2556.9,2556.5,0.3068]
[1746930469773,3.9108795,2557.0,2556.5,0.3068]
[1746930470065,3.91086049,2557.0,2556.5,0.3068]
[1746930470308,0.39108605,2556.9,2556.5,0.3068]
[1746930470847,4.30211176,2556.9,2556.5,0.3068]
[1746930471576,1.15628605,2556.9,2555.8,0.3068]
[1746930471734,3.91115613,2556.8,2555.8,0.3068]
[1746930471935,0.72562407,2556.7,2555.8,0.3068]
[1746930472256,3.91156008,2556.6,2555.8,0.3068]
[1746930472452,0.72562407,2556.7,2555.8,0.3068]
[1746930472667,3.094,2556.6,2555.8,0.3068]
[1746930472870,3.9119567,2556.3,2555.8,0.3068]
[1746930473651,3.91212195,2556.2,2555.8,0.3068]
[1746930474676,3.91198484,2556.3,2555.8,0.3068]
[1746930475067,0.21901087,2556.2,2555.8,0.3068]
[1746930475438,0.21901087,2556.2,2555.9,8.3068]
[1746930475675,0.21901087,2556.2,2556.1,8.3068]
[1746930475874,8.7576,2557.4,2556.1,8.3068]
[1746930476182,3.9108165,2557.1,2556.1,8.3068]
[1746930476339,3.91085837,2557.0,2556.1,8.3068]
[1746930476765,0.21905431,2556.9,2556.1,8.3068]
[1746930476965,0.21905431,2556.9,2556.3,0.3068]
[1746930477168,0.21905431,2556.9,2556.4,0.3068]
[1746930477559,3.91037901,2557.3,2556.4,0.3068]
[1746930477863,3.91006842,2557.5,2556.5,0.0391147]
[1746930478066,0.29522039,2557.6,2556.4,0.3068]
[1746930478257,3.91035335,2557.4,2556.4,0.3068]